[Event "WYCC 2018 G16"]
[Site "Halkidiki"]
[Date "2018.10.21"]
[Round "3"]
[White "Muetsch, Annmarie"]
[Black "Esadze, Tamari"]
[Result "1-0"]
[ECO "B56"]
[WhiteElo "2206"]
[BlackElo "1911"]
[Annotator "NA"]
[PlyCount "111"]
[EventDate "2018.10.20"]
[EventType "swiss"]
[EventCountry "GRE"]
[SourceTitle "playchess.com"]
[Source "ChessBase"]
[SourceQuality "1"]
[TimeControl "40/5400+30:1800+30"]

1. e4 {[%emt 0:00:00]} c5 {[%emt 0:00:00]} 2. Nc3 {[%emt 0:00:00]} Nc6 {[%emt 0:00:00]} 3. Nf3 {[%emt 0:00:00]} d6 {[%emt 0:01:33]} 4. d4 {[%emt 0:00:17]} cxd4 {[%emt 0:00:17]} 5. Nxd4 {[%emt 0:00:05]} Nf6 {[%emt 0:01:49]} 6. g3 {[%emt 0:00:18]} e5 {[%emt 0:03:18]} 7. Nde2 {[%emt 0:00:07]} Bg4 {[%emt 0:03:28]} 8. Bg2 {[%emt 0:02:51]} Nd4 {[%emt 0:02:07] B56: Sizilianisch (Abweichung von Sozin- und Richter/Rauser-Variante)} 9. Qd3 {[%emt 0:03:42]} Nxe2 {[%emt 0:01:45]} 10. Nxe2 {[%emt 0:00:07]} Be7 {[%emt 0:10:53]} 11. O-O {[%emt 0:06:35]} Qc7 $146 {[%emt 0:02:44]} ({Vorgänger:} 11... O-O 12. Bg5 Nd7 13. Bxe7 Qxe7 14. Nc3 Nc5 15. Qe3 Be6 16. Rad1 {0-1 (48) Ramnath,B (2307)-Fawzy,A (2440) Abu Dhabi 2016}) 12. c4 {[%emt 0:03:01]} Bxe2 {[%emt 0:01:56]} (12... Rc8 $11 {remains equal.}) 13. Qxe2 {[%emt 0:00:06]} O-O {[%emt 0:00:39]} 14. b3 {[%emt 0:04:13]} a6 {[%emt 0:02:29]} 15. Bb2 {[%emt 0:08:04]} Qc5 {[%emt 0:02:47]} 16. Kh1 {[%emt 0:02:32]} Ne8 {[%emt 0:06:23]} 17. Rfd1 {[%emt 0:08:58]} Nf6 {[%emt 0:07:18]} 18. a4 {[%emt 0:04:14]} Qb6 {[%emt 0:01:43]} 19. Rd3 {[%emt 0:01:59]} Qc6 {[%emt 0:06:47]} 20. f4 {[%emt 0:05:26]} Nd7 {[%emt 0:03:35]} 21. Rd5 {[%emt 0:02:56]} Nf6 {[%emt 0:04:11]} 22. Rd3 {[%emt 0:15:10]} Nd7 {[%emt 0:01:02]} 23. fxe5 {[%emt 0:00:43]} dxe5 {[%emt 0:06:36]} 24. Rd5 {[%emt 0:00:11]} f6 {[%emt 0:02:40]} 25. Rad1 {[%emt 0:03:40]} Nb6 {[%emt 0:01:31]} 26. R5d3 {[%emt 0:02:11]} a5 {[%emt 0:03:08]} 27. Bh3 {[%emt 0:02:17]} Bc5 {[%emt 0:03:19]} 28. Bd7 {[%emt 0:05:45]} Nxd7 {[%emt 0:05:05]} 29. Rxd7 {[%emt 0:00:07]} Rf7 {[%emt 0:01:40]} 30. Rxf7 {[%emt 0:02:54]} Kxf7 {[%emt 0:00:02]} 31. Qg4 {[%emt 0:01:18]} Bd6 {[%emt 0:04:50]} 32. Rd5 {[%emt 0:02:02]} b6 {[%emt 0:01:42]} 33. h4 {[%emt 0:01:19]} Rb8 {[%emt 0:03:29]} 34. h5 {[%emt 0:01:07]} g6 {[%emt 0:01:45]} 35. Kg2 {[%emt 0:01:40]} Be7 {[%emt 0:01:10]} 36. Qf3 {[%emt 0:02:27]} Kg7 {[%emt 0:01:09]} 37. hxg6 {[%emt 0:02:56]} hxg6 {[%emt 0:00:03]} 38. Rxe5 {[%emt 0:00:31]} Ba3 {[%emt 0:03:00]} 39. Ba1 {[%emt 0:00:42]} Rh8 {[%emt 0:00:48]} 40. Rd5 {[%emt 0:00:00]} Be7 {[%emt 0:00:00]} 41. e5 {[%emt 0:06:05]} Rf8 {[%emt 0:03:28]} 42. Rd3 {[%emt 0:02:51]} Qe6 {[%emt 0:03:50]} 43. Qd5 {[%emt 0:04:53]} Qg4 {[%emt 0:05:25]} 44. Rf3 {[%emt 0:00:09]} Rd8 {[%emt 0:10:05]} 45. exf6+ {[%emt 0:04:55]} Kh6 {[%emt 0:00:04]} 46. fxe7 {[%emt 0:01:33]} Rxd5 {[%emt 0:00:02]} 47. e8=Q {[%emt 0:00:12]} Rd2+ {[%emt 0:00:10]} 48. Rf2 {[%emt 0:00:05]} Rxf2+ {[%emt 0:00:14]} 49. Kxf2 {[%emt 0:00:05]} Qf5+ {[%emt 0:00:03] [#]} 50. Ke3 $1 {[%emt 0:01:49]} Qg5+ {[%emt 0:04:23]} 51. Kd3 {[%emt 0:00:28]} Qf5+ {[%emt 0:00:08]} 52. Kd2 {[%emt 0:00:14]} Qb1 {[%emt 0:02:14]} 53. Qh8+ {[%emt 0:05:38]} Kg5 {[%emt 0:00:04]} 54. Qb2 {[%emt 0:01:45]} (54. Qd4 $142 Kf5 55. Qd3+ Qxd3+ 56. Kxd3 Ke6 57. Bd4 Kd6 58. Bxb6 Kc6 59. Bxa5) 54... Qf1 {[%emt 0:02:48]} 55. Qe5+ {[%emt 0:00:25]} Kg4 {[%emt 0:00:14]} 56. Qf4+ {[%emt 0:00:09]} 1-0

[Event "WYCC 2018 G16"]
[Site "Halkidiki"]
[Date "2018.10.21"]
[Round "3"]
[White "Makhija, Aashna"]
[Black "Nestorovic, Katarina"]
[Result "1-0"]
[ECO "B22"]
[WhiteElo "2197"]
[BlackElo "2015"]
[Annotator "NA"]
[PlyCount "117"]
[EventDate "2018.10.20"]
[EventType "swiss"]
[EventCountry "GRE"]
[SourceTitle "playchess.com"]
[Source "ChessBase"]
[SourceQuality "1"]
[TimeControl "40/5400+30:1800+30"]

1. e4 {[%emt 0:00:00]} c5 {[%emt 0:00:00]} 2. c3 {[%emt 0:00:00]} Nf6 {[%emt 0:00:00]} 3. e5 {[%emt 0:00:08]} Nd5 {[%emt 0:00:00]} 4. Nf3 {[%emt 0:00:14]} Nc6 {[%emt 0:00:27]} 5. Bc4 {[%emt 0:00:18]} Nb6 {[%emt 0:01:02]} 6. Bb3 {[%emt 0:00:20]} d5 {[%emt 0:00:42]} 7. exd6 {[%emt 0:00:36]} Qxd6 {[%emt 0:03:58]} 8. Na3 {[%emt 0:00:23]} Be6 {[%emt 0:06:11]} 9. d4 {[%emt 0:01:28]} cxd4 {[%emt 0:02:26]} 10. Nb5 {[%emt 0:01:00] B22: Sicilian: 2 c3} Qd7 {[%emt 0:01:15]} 11. Nbxd4 {[%emt 0:01:22]} Nxd4 {[%emt 0:02:52]} 12. Nxd4 {[%emt 0:04:13]} Bxb3 {[%emt 0:00:35]} 13. Qxb3 {[%emt 0:01:54]} g6 {[%emt 0:05:49]} (13... e6 14. Bf4 Bd6 15. Bxd6 Qxd6 {½-½ (32) Abasov,N (2587)-Nepomniachtchi,I (2733) Antalya 2017}) 14. O-O {[%emt 0:04:24]} Bg7 {[%emt 0:02:58] [#]} 15. Re1 $146 {[%emt 0:16:43]} ({Predecessor:} 15. Rd1 O-O 16. Be3 Nc8 17. Nb5 Qc6 {½-½ (43) Sermek,D (2577)-Pelletier,Y (2545) Leon 2001}) 15... O-O {[%emt 0:01:39]} 16. Bg5 {[%emt 0:07:02]} e5 {[%emt 0:08:35]} 17. Nf3 {[%emt 0:05:00]} Qc7 {[%emt 0:08:49]} 18. Re2 {[%emt 0:15:50]} Kh8 {[%emt 0:02:22]} 19. Rd1 {[%emt 0:05:17]} f6 {[%emt 0:01:41]} 20. Bc1 {[%emt 0:11:54]} Rad8 {[%emt 0:02:06]} 21. Red2 {[%emt 0:01:18]} Nd7 {[%emt 0:06:58]} 22. Qc2 {[%emt 0:05:02]} Nc5 {[%emt 0:01:58]} 23. Rd5 {[%emt 0:05:22]} Ne6 {[%emt 0:04:51]} 24. Rxd8 {[%emt 0:05:01]} Rxd8 {[%emt 0:00:08]} 25. Be3 {[%emt 0:04:15]} b6 {[%emt 0:01:13]} 26. Rxd8+ {[%emt 0:01:05]} Qxd8 {[%emt 0:00:28]} 27. Qd2 {[%emt 0:00:26]} Qxd2 {[%emt 0:01:14]} 28. Nxd2 {[%emt 0:00:22]} f5 {[%emt 0:02:13]} 29. f3 {[%emt 0:00:26]} Nc5 {[%emt 0:01:26]} 30. Bxc5 {[%emt 0:01:38]} bxc5 {[%emt 0:00:07]} 31. Nb3 {[%emt 0:01:04]} Bf8 {[%emt 0:00:27]} 32. c4 {[%emt 0:00:57]} Kg7 {[%emt 0:01:25]} 33. Kf2 {[%emt 0:00:50]} Kf6 {[%emt 0:01:16]} 34. Na5 {[%emt 0:00:32]} Bd6 {[%emt 0:00:31]} 35. Nb7 {[%emt 0:00:23]} Be7 {[%emt 0:01:09]} 36. Na5 {[%emt 0:00:20]} Bd8 {[%emt 0:01:34]} 37. Nb3 {[%emt 0:00:25]} Be7 {[%emt 0:00:31]} 38. Nd2 {[%emt 0:00:42]} Ke6 {[%emt 0:00:43]} 39. Nb1 {[%emt 0:00:43]} Bg5 {[%emt 0:02:33]} 40. Nc3 {[%emt 0:00:00]} Bd2 {[%emt 0:00:00]} 41. Nd5 {[%emt 0:06:18]} a5 {[%emt 0:04:45]} 42. b3 {[%emt 0:04:17]} g5 {[%emt 0:07:50]} 43. Ke2 {[%emt 0:04:17]} Bc1 {[%emt 0:03:33]} 44. Kd3 {[%emt 0:00:28]} Bb2 {[%emt 0:04:04]} 45. h3 {[%emt 0:01:48]} f4 {[%emt 0:07:19]} 46. Ke4 {[%emt 0:00:57]} Bd4 {[%emt 0:02:51]} 47. Nc7+ {[%emt 0:02:39]} Kd7 {[%emt 0:00:19]} 48. Nb5 {[%emt 0:01:07]} Ke6 {[%emt 0:00:36]} 49. Na7 {[%emt 0:05:50]} Bc3 {[%emt 0:07:16]} 50. Nc6 {[%emt 0:00:34]} Bd4 {[%emt 0:03:40]} 51. Nxa5 {[%emt 0:04:05]} Kd6 {[%emt 0:00:27]} 52. a3 {[%emt 0:00:38]} h6 {[%emt 0:04:32]} 53. b4 {[%emt 0:02:18]} cxb4 {[%emt 0:01:50]} 54. axb4 {[%emt 0:00:19]} Bc3 {[%emt 0:00:22]} 55. Nb7+ {[%emt 0:01:16]} Kc7 {[%emt 0:00:23]} 56. Nc5 {[%emt 0:00:04]} Kd6 {[%emt 0:00:51]} 57. Nd3 {[%emt 0:00:12]} Ke6 $18 {[%emt 0:00:41]} 58. b5 {[%emt 0:00:22]} Bd4 {[%emt 0:00:47]} 59. c5 {[%emt 0:00:22] Kd5+} 1-0

[Event "WYCC 2018 G16"]
[Site "Halkidiki"]
[Date "2018.10.21"]
[Round "3"]
[White "Yurasova, Daria"]
[Black "Miroshnik, Ekaterina"]
[Result "1/2-1/2"]
[ECO "D35"]
[WhiteElo "2193"]
[BlackElo "2023"]
[Annotator "NA"]
[PlyCount "81"]
[EventDate "2018.10.20"]
[EventType "swiss"]
[EventCountry "GRE"]
[SourceTitle "playchess.com"]
[Source "ChessBase"]
[SourceQuality "1"]
[TimeControl "40/5400+30:1800+30"]

1. d4 {[%emt 0:00:00]} d5 {[%emt 0:00:00]} 2. c4 {[%emt 0:00:00]} e6 {[%emt 0:00:00]} 3. Nc3 {[%emt 0:00:00]} Nf6 {[%emt 0:00:00]} 4. cxd5 {[%emt 0:00:00]} exd5 {[%emt 0:00:00]} 5. Bg5 {[%emt 0:00:04]} Be7 {[%emt 0:00:00]} 6. e3 {[%emt 0:00:09]} c6 {[%emt 0:01:26]} 7. Qc2 {[%emt 0:01:31]} Nbd7 {[%emt 0:00:19]} 8. Bd3 {[%emt 0:00:09]} Nh5 {[%emt 0:01:23]} 9. Bxe7 {[%emt 0:01:13]} Qxe7 {[%emt 0:00:07]} 10. Nge2 {[%emt 0:01:36]} g6 {[%emt 0:00:05]} 11. O-O {[%emt 0:09:55]} O-O {[%emt 0:00:04]} 12. Rfe1 {[%emt 0:07:27]} Ndf6 {[%emt 0:01:47]} 13. Ng3 {[%emt 0:03:08]} Nxg3 {[%emt 0:02:14]} 14. hxg3 {[%emt 0:00:11]} Be6 $11 {[%emt 0:03:03]} 15. Na4 {[%emt 0:02:19]} Rae8 {[%emt 0:03:33]} 16. Qc5 {[%emt 0:04:23]} Nd7 {[%emt 0:14:34]} 17. Qxe7 {[%emt 0:00:51]} Rxe7 {[%emt 0:00:02]} 18. Rac1 {[%emt 0:00:26]} Rc8 {[%emt 0:01:45]} 19. b4 {[%emt 0:00:28]} Nf6 {[%emt 0:08:51]} 20. Nc5 {[%emt 0:04:30]} b6 {[%emt 0:06:04]} 21. Nxe6 {[%emt 0:00:46]} Rxe6 {[%emt 0:00:32]} 22. Rc2 {[%emt 0:00:30]} Nd7 {[%emt 0:05:15]} 23. Rec1 {[%emt 0:00:42]} Nb8 {[%emt 0:00:36]} 24. b5 {[%emt 0:08:39]} Kf8 {[%emt 0:05:06]} 25. Be2 {[%emt 0:00:47]} Ke7 {[%emt 0:02:53]} 26. g4 {[%emt 0:00:44]} Kd6 {[%emt 0:06:36]} 27. g5 {[%emt 0:01:46]} f5 {[%emt 0:00:21]} 28. bxc6 {[%emt 0:03:47]} Rxc6 {[%emt 0:09:27]} 29. Bb5 {[%emt 0:00:07]} Rxc2 {[%emt 0:00:33]} 30. Rxc2 {[%emt 0:00:01]} a6 {[%emt 0:05:20]} 31. Rc8 {[%emt 0:01:36]} axb5 {[%emt 0:00:05]} 32. Rxb8 {[%emt 0:00:06]} Kc7 {[%emt 0:01:16]} 33. Rf8 {[%emt 0:01:55]} Re7 {[%emt 0:00:10]} 34. Kf1 {[%emt 0:00:25]} b4 {[%emt 0:01:31]} 35. Ke2 {[%emt 0:00:43]} Kc6 {[%emt 0:01:48]} 36. Kf3 {[%emt 0:15:11]} Ra7 {[%emt 0:03:34]} 37. Rc8+ {[%emt 0:00:08]} Kb5 {[%emt 0:02:09]} 38. Rc2 {[%emt 0:00:02]} Re7 {[%emt 0:07:33]} 39. g4 {[%emt 0:05:21]} fxg4+ {[%emt 0:01:29]} 40. Kxg4 {[%emt 0:00:00]} Ka4 {[%emt 0:00:00]} 41. Kf3 {[%emt 0:05:08]} 1/2-1/2

[Event "WYCC 2018 G16"]
[Site "Halkidiki"]
[Date "2018.10.21"]
[Round "3"]
[White "Hilario, Aleyla"]
[Black "Srdanovic, Jovana"]
[Result "0-1"]
[ECO "D11"]
[WhiteElo "2175"]
[BlackElo "2072"]
[Annotator "NA"]
[PlyCount "132"]
[EventDate "2018.10.20"]
[EventType "swiss"]
[EventCountry "GRE"]
[SourceTitle "playchess.com"]
[Source "ChessBase"]
[SourceQuality "1"]
[TimeControl "40/5400+30:1800+30"]

1. d4 {[%emt 0:00:00]} d5 {[%emt 0:00:00]} 2. c4 {[%emt 0:00:00]} c6 {[%emt 0:00:00]} 3. Nf3 {[%emt 0:00:00]} Nf6 {[%emt 0:00:00]} 4. e3 {[%emt 0:00:00]} Bg4 {[%emt 0:02:17]} 5. Bd3 {[%emt 0:00:18]} e6 {[%emt 0:00:07]} 6. Nbd2 {[%emt 0:00:33]} Nbd7 {[%emt 0:03:32] D11: Slav Defence: 3 Nf3 sidelines and 3...Nf6 4 e3 Bg4} 7. h3 {[%emt 0:00:12]} (7. O-O Bd6 8. b3 O-O 9. Bb2 a5 10. Qc2 Qb8 11. h3 Bh5 12. Ng5 Bg6 13. Bxg6 hxg6 14. a4 Bb4 15. Ndf3 Nh7 16. Nxh7 Kxh7 17. e4 {1-0 (54) Andreikin,D (2712)-Korobov,A (2652) Huaian 2017}) 7... Bh5 {[%emt 0:00:11]} 8. b3 {[%emt 0:00:04]} Bd6 {[%emt 0:01:24]} 9. Qc2 {[%emt 0:01:40]} Bg6 {[%emt 0:02:53]} 10. Bb2 {[%emt 0:00:12]} Qc7 {[%emt 0:09:33]} 11. O-O {[%emt 0:04:26]} O-O {[%emt 0:01:04]} 12. Bxg6 {[%emt 0:04:12]} hxg6 {[%emt 0:00:07]} 13. Rac1 {[%emt 0:03:21]} Rfe8 {[%emt 0:02:03]} 14. a3 $146 {[%emt 0:07:13]} Rad8 {[%emt 0:01:30]} 15. b4 {[%emt 0:01:21]} Qb8 {[%emt 0:01:22]} 16. Rfd1 {[%emt 0:22:02]} a6 {[%emt 0:12:27]} 17. b5 {[%emt 0:07:35]} cxb5 {[%emt 0:02:47]} 18. cxb5 {[%emt 0:01:16]} axb5 {[%emt 0:11:08]} 19. Qb3 {[%emt 0:02:00]} Qa7 {[%emt 0:01:08]} 20. Qxb5 {[%emt 0:00:28]} Qb6 {[%emt 0:00:04]} 21. a4 {[%emt 0:01:26]} Ra8 {[%emt 0:00:21]} 22. Nb3 {[%emt 0:07:58]} Ra6 {[%emt 0:10:49]} 23. Qxb6 {[%emt 0:20:21]} Nxb6 {[%emt 0:03:52]} 24. a5 {[%emt 0:00:07]} Nc4 {[%emt 0:00:03]} 25. Bc3 {[%emt 0:00:06]} Ne4 {[%emt 0:00:06]} 26. Be1 {[%emt 0:03:50]} Nb2 {[%emt 0:02:43]} 27. Rd2 {[%emt 0:09:49]} Nxd2 {[%emt 0:00:21]} 28. Bxd2 {[%emt 0:00:02]} Nc4 {[%emt 0:00:36]} 29. Bc3 {[%emt 0:00:09]} b6 {[%emt 0:00:36]} 30. axb6 {[%emt 0:00:07]} Rxb6 {[%emt 0:00:04]} 31. Nbd2 {[%emt 0:01:33]} Nxd2 {[%emt 0:00:16]} 32. Bxd2 {[%emt 0:00:04]} Reb8 {[%emt 0:00:06]} 33. Kf1 {[%emt 0:00:22]} Bb4 {[%emt 0:01:01]} 34. Bxb4 {[%emt 0:00:45]} Rxb4 {[%emt 0:00:05]} 35. Rc2 {[%emt 0:00:09]} f6 {[%emt 0:02:21]} 36. Ne1 {[%emt 0:01:48]} Rb3 {[%emt 0:00:47]} 37. Rc6 {[%emt 0:00:11]} Rb1 {[%emt 0:01:13]} 38. Rxe6 {[%emt 0:00:57]} Ra1 {[%emt 0:00:08]} 39. e4 {[%emt 0:00:04]} dxe4 {[%emt 0:01:37]} 40. Rxe4 {[%emt 0:00:00]} f5 {[%emt 0:00:00]} 41. Re5 {[%emt 0:04:30]} Rd1 {[%emt 0:02:35]} 42. Ke2 {[%emt 0:00:42]} Rxd4 {[%emt 0:00:09]} 43. Ke3 {[%emt 0:00:21]} Ra4 {[%emt 0:00:33]} 44. Nd3 {[%emt 0:00:45]} Kf7 {[%emt 0:00:36]} 45. f3 {[%emt 0:02:28]} Rb3 {[%emt 0:00:40]} 46. g3 {[%emt 0:00:13]} Ra8 {[%emt 0:01:05]} 47. Rd5 {[%emt 0:00:50]} Ke6 {[%emt 0:01:47]} 48. Rd4 {[%emt 0:00:07]} g5 {[%emt 0:02:49]} 49. g4 {[%emt 0:08:12]} g6 {[%emt 0:00:53]} 50. f4 {[%emt 0:00:19]} Rh8 {[%emt 0:02:17]} 51. Kf2 {[%emt 0:00:53]} Rb5 {[%emt 0:00:19]} 52. Kg3 {[%emt 0:00:46]} Kf6 {[%emt 0:24:35]} 53. Rd6+ {[%emt 0:00:50]} Ke7 {[%emt 0:00:37]} 54. Rd4 {[%emt 0:00:13]} Rb3 {[%emt 0:00:36]} 55. Kg2 {[%emt 0:00:31]} Rd8 {[%emt 0:03:23]} 56. Rxd8 {[%emt 0:00:59]} Kxd8 {[%emt 0:00:05]} 57. Nc5 {[%emt 0:00:09]} Rb2+ {[%emt 0:05:58]} 58. Kg3 {[%emt 0:00:20]} (58. Kf3 {is the only way for White.}) 58... gxf4+ {[%emt 0:00:37]} 59. Kxf4 {[%emt 0:00:07]} Rb4+ {[%emt 0:01:28]} 60. Kf3 {[%emt 0:01:59]} Ke7 {[%emt 0:01:24]} 61. Nd3 {[%emt 0:02:10]} Rb3 {[%emt 0:00:24]} 62. Ke2 {[%emt 0:00:02]} Kf6 {[%emt 0:00:23]} 63. gxf5 {[%emt 0:00:30]} Kxf5 {[%emt 0:00:31]} 64. Nf2 {[%emt 0:00:05]} Kf4 {[%emt 0:00:10]} 65. Nd3+ {[%emt 0:00:55]} Kg3 {[%emt 0:00:08]} 66. Ne5 {[%emt 0:00:03]} Rb6 {[%emt 0:00:11]} 0-1

[Event "WYCC 2018 G16"]
[Site "Halkidiki"]
[Date "2018.10.21"]
[Round "3"]
[White "Serikbay, Assel"]
[Black "Tejasvi M"]
[Result "1-0"]
[ECO "E01"]
[WhiteElo "2166"]
[BlackElo "1869"]
[Annotator "NA"]
[PlyCount "67"]
[EventDate "2018.10.20"]
[EventType "swiss"]
[EventCountry "GRE"]
[SourceTitle "playchess.com"]
[Source "ChessBase"]
[SourceQuality "1"]
[TimeControl "40/5400+30:1800+30"]

1. d4 {[%emt 0:00:00]} Nf6 {[%emt 0:00:33]} 2. c4 {[%emt 0:00:00]} e6 {[%emt 0:00:05]} 3. g3 {[%emt 0:00:00]} d5 {[%emt 0:00:06]} 4. Bg2 {[%emt 0:00:24]} Bb4+ {[%emt 0:00:13]} 5. Bd2 {[%emt 0:00:08]} Be7 {[%emt 0:00:05]} 6. Nf3 {[%emt 0:00:12]} O-O {[%emt 0:00:13]} 7. O-O {[%emt 0:00:10]} c6 {[%emt 0:00:09]} 8. Qc2 {[%emt 0:00:13]} b6 {[%emt 0:00:20]} 9. Rd1 {[%emt 0:01:42]} Ba6 {[%emt 0:01:06]} 10. Ne5 {[%emt 0:01:38]} Nfd7 {[%emt 0:09:59]} 11. cxd5 {[%emt 0:05:34]} Nxe5 {[%emt 0:05:45]} 12. dxe5 {[%emt 0:00:13]} exd5 {[%emt 0:03:41]} 13. Bc3 {[%emt 0:02:28]} Qc7 {[%emt 0:07:33]} 14. e4 {[%emt 0:01:37]} dxe4 {[%emt 0:01:45]} 15. Bxe4 {[%emt 0:00:42]} h6 {[%emt 0:00:44]} 16. e6 {[%emt 0:26:49]} Kh8 {[%emt 0:21:38]} 17. Qd2 {[%emt 0:13:04]} Kg8 {[%emt 0:04:26]} 18. exf7+ {[%emt 0:02:57]} Rxf7 {[%emt 0:00:57]} 19. Bc2 {[%emt 0:02:27]} Rf8 {[%emt 0:07:37]} 20. Bb3+ {[%emt 0:03:19]} Kh7 {[%emt 0:00:08]} 21. Bc2+ {[%emt 0:05:27]} Kg8 {[%emt 0:00:16]} 22. Qd4 {[%emt 0:14:19]} Bf6 {[%emt 0:13:28]} 23. Qe4 {[%emt 0:00:06]} Bxc3 {[%emt 0:00:30]} 24. Qh7+ {[%emt 0:00:30]} Kf7 {[%emt 0:00:02]} 25. Nxc3 {[%emt 0:01:20]} Nd7 {[%emt 0:02:47]} 26. Bg6+ {[%emt 0:03:03]} Kf6 {[%emt 0:00:07]} 27. Ne4+ {[%emt 0:00:33]} Ke6 {[%emt 0:00:08]} 28. Qxg7 {[%emt 0:00:36]} Rad8 {[%emt 0:01:06]} 29. f4 {[%emt 0:06:19]} Bb7 {[%emt 0:00:46]} 30. f5+ {[%emt 0:02:57]} Rxf5 {[%emt 0:00:04]} 31. Bxf5+ {[%emt 0:00:15]} Kxf5 {[%emt 0:00:04]} 32. Nd6+ {[%emt 0:00:16]} Ke6 {[%emt 0:00:09]} 33. Qf7+ {[%emt 0:00:16]} Ke5 {[%emt 0:00:01]} 34. Qf5# {[%emt 0:00:08]} 1-0

[Event "WYCC 2018 G16"]
[Site "Halkidiki"]
[Date "2018.10.21"]
[Round "3"]
[White "Peycheva, Gergana"]
[Black "Zhang, Xiao"]
[Result "1-0"]
[ECO "D20"]
[WhiteElo "2152"]
[BlackElo "1980"]
[Annotator "NA"]
[PlyCount "87"]
[EventDate "2018.10.20"]
[EventType "swiss"]
[EventCountry "GRE"]
[SourceTitle "playchess.com"]
[Source "ChessBase"]
[SourceQuality "1"]
[TimeControl "40/5400+30:1800+30"]

1. d4 {[%emt 0:00:00]} d5 {[%emt 0:00:00]} 2. c4 {[%emt 0:00:00]} dxc4 {[%emt 0:00:00]} 3. e4 {[%emt 0:00:06]} Nf6 {[%emt 0:00:00]} 4. e5 {[%emt 0:01:50]} Nd5 {[%emt 0:00:03]} 5. Bxc4 {[%emt 0:00:58]} Nb6 {[%emt 0:00:17]} 6. Bd3 {[%emt 0:00:57]} e6 {[%emt 0:01:44]} 7. Ne2 {[%emt 0:03:25]} Nc6 {[%emt 0:06:06]} 8. Nbc3 {[%emt 0:03:17]} Be7 {[%emt 0:01:50]} 9. Be4 {[%emt 0:05:43]} O-O {[%emt 0:06:13]} 10. O-O {[%emt 0:02:47]} Bd7 {[%emt 0:02:55]} 11. Qc2 {[%emt 0:05:03]} g6 {[%emt 0:01:11]} 12. a3 {[%emt 0:01:56]} a5 {[%emt 0:05:45]} 13. b3 {[%emt 0:03:03]} Rb8 {[%emt 0:05:08]} 14. Be3 {[%emt 0:01:59]} Na7 {[%emt 0:05:37]} 15. Rfd1 {[%emt 0:04:50]} c6 {[%emt 0:02:42]} 16. Bf3 {[%emt 0:02:26]} Nd5 {[%emt 0:04:41]} 17. Bh6 {[%emt 0:03:50]} Re8 {[%emt 0:00:20]} 18. Ne4 {[%emt 0:01:47]} f5 {[%emt 0:08:37]} 19. exf6 {[%emt 0:02:26]} Nxf6 {[%emt 0:01:17]} 20. N2c3 {[%emt 0:03:25]} Nd5 {[%emt 0:01:49]} 21. Re1 {[%emt 0:06:28]} Qb6 {[%emt 0:04:40]} 22. Na4 {[%emt 0:05:41]} Qc7 {[%emt 0:04:13]} 23. Nac5 {[%emt 0:01:41]} Bc8 {[%emt 0:03:18]} 24. Bg4 {[%emt 0:03:19]} Bxc5 {[%emt 0:04:16]} 25. dxc5 {[%emt 0:03:41]} Nb5 {[%emt 0:01:56]} 26. a4 {[%emt 0:02:14]} Nd4 {[%emt 0:00:52]} 27. Qc4 {[%emt 0:00:25]} Nf5 {[%emt 0:02:12]} 28. Bxf5 {[%emt 0:00:22]} gxf5 {[%emt 0:00:53]} 29. Nd6 {[%emt 0:02:11]} Re7 {[%emt 0:00:36]} 30. Rad1 {[%emt 0:01:27]} e5 {[%emt 0:09:56]} 31. Rxd5 {[%emt 0:08:25]} cxd5 {[%emt 0:02:51]} 32. Qxd5+ {[%emt 0:00:06]} Be6 {[%emt 0:04:25]} 33. Qxe5 {[%emt 0:00:48]} Rbe8 {[%emt 0:03:10]} 34. Qg3+ {[%emt 0:01:22]} Kh8 {[%emt 0:00:06]} 35. Qc3+ {[%emt 0:00:43]} Kg8 {[%emt 0:00:06]} 36. Nxe8 {[%emt 0:00:39]} Rxe8 {[%emt 0:00:04]} 37. Re3 {[%emt 0:02:01]} f4 {[%emt 0:00:24]} 38. Re4 {[%emt 0:04:10]} Qf7 {[%emt 0:03:50]} 39. Bxf4 {[%emt 0:01:36]} Qf5 {[%emt 0:01:12]} 40. Qe3 {[%emt 0:00:00]} Qd5 {[%emt 0:00:00]} 41. h3 {[%emt 0:03:07]} Kf7 {[%emt 0:01:33]} 42. Bd6 {[%emt 0:02:54]} Qxb3 {[%emt 0:01:06]} 43. Rf4+ {[%emt 0:01:35]} Kg8 {[%emt 0:01:14]} 44. Rg4+ {[%emt 0:00:16]} 1-0